fUST/lending_fUST_20241007
["ID","MTS","AMOUNT","RATE_DAILY","PERIOD"]
[339964786,1728232242441,-500.0,0.00013698,2]
[339964788,1728232242451,-500.0,0.00013698,2]
[339964789,1728232242461,-500.0,0.00013698,2]
[339964790,1728232242474,-500.0,0.00013698,2]
[339964791,1728232242484,-500.0,0.00013698,2]
[339964792,1728232242494,-500.0,0.00013698,2]
[339964793,1728232242503,-500.0,0.00013698,2]
[339964794,1728232242513,-592.24,0.00013698,2]
[339964795,1728232242523,-500.0,0.00013698,2]
[339964796,1728232242533,-151.0,0.00013698,2]
[339964797,1728232242542,-151.0,0.00013698,2]
[339964798,1728232242554,-151.0,0.00013698,2]
[339964799,1728232242564,-178.139726,0.00013698,2]
[339964800,1728232242573,-500.0,0.00013698,2]
[339964801,1728232242583,-500.0,0.00013698,2]
[339964802,1728232242592,-500.0,0.00013698,2]
[339964803,1728232242602,-548.54,0.00013698,2]
[339964804,1728232242611,-1240.19,0.00013698,2]
[339964805,1728232242620,-500.0,0.00013698,2]
[339964806,1728232242630,-500.0,0.00013698,2]
[339964807,1728232242639,-500.0,0.00013698,2]
[339964808,1728232242648,-154.46395219,0.00013698,2]
[339964809,1728232242658,-580.43,0.00013698,2]
[339964810,1728232242667,-516.696508,0.00013698,2]
[339964811,1728232242677,-516.696508,0.00013698,2]
[339964812,1728232242687,-516.696508,0.00013698,2]
[339964813,1728232242697,-516.696508,0.00013698,2]
[339964814,1728232242706,-516.696508,0.00013698,2]
[339964815,1728232242716,-516.696508,0.00013698,2]
[339964816,1728232242725,-516.696508,0.00013698,2]
[339964817,1728232242735,-516.696508,0.00013698,2]
[339964818,1728232242747,-516.696508,0.00013698,2]
[339964819,1728232242758,-516.696508,0.00013698,2]
[339964820,1728232242768,-1333.9,0.00013698,2]
[339964821,1728232242779,-516.696508,0.00013698,2]
[339964822,1728232242789,-516.696508,0.00013698,2]
[339964823,1728232242801,-500.0,0.00013698,2]
[339964824,1728232242811,-516.696508,0.00013698,2]
[339964825,1728232242820,-516.696508,0.00013698,2]
[339964826,1728232242830,-516.696508,0.00013698,2]
[339964827,1728232242840,-516.696498,0.00013698,2]
[339964829,1728232242850,-500.0,0.00013698,2]
[339964831,1728232242863,-500.0,0.00013698,2]
[339964832,1728232242873,-621.41961343,0.00013698,2]
[339964833,1728232242884,-500.0,0.00013698,2]
[339964834,1728232242894,-816.03,0.00013698,2]
[339964835,1728232242904,-500.0,0.00013698,2]
[339964836,1728232242913,-500.0,0.00013698,2]
[339964837,1728232242922,-500.0,0.00013698,2]
[339964838,1728232242931,-500.0,0.00013698,2]
[339964839,1728232242941,-819.199825,0.00013698,2]
[339964840,1728232242951,-819.199825,0.00013698,2]
[339964841,1728232242961,-819.199825,0.00013698,2]
[339964842,1728232242970,-819.199825,0.00013698,2]
[339964843,1728232242979,-333.34871468,0.00013698,2]
[339964844,1728232242989,-819.199825,0.00013698,2]
[339964845,1728232242998,-819.199825,0.00013698,2]
[339964846,1728232243007,-500.0,0.00013698,2]
[339964847,1728232243018,-500.0,0.00013698,2]
[339964848,1728232243028,-819.199825,0.00013698,2]
[339964849,1728232243039,-819.199825,0.00013698,2]
[339964850,1728232243049,-819.199825,0.00013698,2]
[339964851,1728232243058,-887.17,0.00013698,2]
[339964852,1728232243068,-819.199825,0.00013698,2]
[339964853,1728232243078,-500.0,0.00013698,2]
[339964854,1728232243088,-819.199825,0.00013698,2]
[339964855,1728232243098,-819.199825,0.00013698,2]
[339964856,1728232243110,-819.199825,0.00013698,2]
[339964857,1728232243120,-819.199825,0.00013698,2]
[339964858,1728232243129,-819.199825,0.00013698,2]
[339964859,1728232243139,-819.199825,0.00013698,2]
[339964860,1728232243149,-819.199825,0.00013698,2]
[339964861,1728232243158,-819.199825,0.00013698,2]
[339964862,1728232243167,-819.199825,0.00013698,2]
[339964863,1728232243176,-819.199829,0.00013698,2]
[339964864,1728232243186,-500.0,0.00013698,2]
[339964865,1728232243195,-500.0,0.00013698,2]
[339964866,1728232243205,-183.00062632,0.00013698,2]
[339964867,1728232243214,-500.0,0.00013698,2]
[339964868,1728232243223,-500.0,0.00013698,2]
[339964869,1728232243232,-1079.08,0.00013698,2]
[339964870,1728232243242,-500.0,0.00013698,2]
[339964871,1728232243251,-500.0,0.00013698,2]
[339964872,1728232243261,-500.0,0.00013698,2]
[339964873,1728232243271,-192.851251,0.00013698,2]
[339964874,1728232243280,-500.0,0.00013698,2]
[339964875,1728232243289,-500.0,0.00013698,2]
[339964876,1728232243299,-985.805524,0.00013698,2]
[339964877,1728232243309,-985.805524,0.00013698,2]
[339964878,1728232243318,-500.0,0.00013698,2]
[339964879,1728232243327,-985.805524,0.00013698,2]
[339964880,1728232243337,-500.0,0.00013698,2]
[339964881,1728232243347,-985.805524,0.00013698,2]
[339964882,1728232243358,-500.0,0.00013698,2]
[339964883,1728232243368,-159.51018359,0.00013698,2]
[339964884,1728232243378,-985.805524,0.00013698,2]
[339964885,1728232243387,-985.805524,0.00013698,2]
[339964886,1728232243397,-985.805524,0.00013698,2]
[339964887,1728232243406,-985.805524,0.00013698,2]
[339964888,1728232243416,-985.805524,0.00013698,2]
[339964889,1728232243425,-214.902598,0.00013698,2]
[339964890,1728232243435,-985.805524,0.00013698,2]
[339964891,1728232243444,-214.902598,0.00013698,2]
[339964892,1728232243453,-985.805524,0.00013698,2]
[339964893,1728232243463,-214.902598,0.00013698,2]
[339964894,1728232243472,-985.805524,0.00013698,2]
[339964895,1728232243482,-214.902598,0.00013698,2]
[339964896,1728232243491,-214.902598,0.00013698,2]
[339964897,1728232243500,-985.805524,0.00013698,2]
[339964898,1728232243510,-214.902598,0.00013698,2]
[339964899,1728232243520,-214.902598,0.00013698,2]
[339964900,1728232243529,-985.805524,0.00013698,2]
[339964901,1728232243539,-214.902598,0.00013698,2]
[339964902,1728232243550,-985.805524,0.00013698,2]
[339964903,1728232243559,-985.805524,0.00013698,2]
[339964904,1728232243569,-214.902598,0.00013698,2]
[339964905,1728232243579,-500.0,0.00013698,2]
[339964906,1728232243588,-214.902598,0.00013698,2]
[339964907,1728232243605,-985.805524,0.00013698,2]
[339964908,1728232243615,-214.902598,0.00013698,2]
[339964909,1728232243624,-985.805524,0.00013698,2]
[339964910,1728232243633,-214.902598,0.00013698,2]
[339964911,1728232243642,-500.0,0.00013698,2]
[339964912,1728232243652,-985.805524,0.00013698,2]
[339964913,1728232243661,-214.902598,0.00013698,2]
[339964914,1728232243671,-500.0,0.00013698,2]
[339964915,1728232243679,-985.805517,0.00013698,2]
[339964916,1728232243688,-214.902598,0.00013698,2]
[339964917,1728232243697,-214.902598,0.00013698,2]
[339964918,1728232243706,-500.0,0.00013698,2]
[339964919,1728232243716,-214.902598,0.00013698,2]
[339964920,1728232243725,-500.0,0.00013698,2]
[339964921,1728232243734,-214.902598,0.00013698,2]
[339964922,1728232243743,-214.902598,0.00013698,2]
[339964923,1728232243753,-214.902598,0.00013698,2]
[339964924,1728232243762,-214.902592,0.00013698,2]
[339964925,1728232243771,-500.0,0.00013698,2]
[339964926,1728232243780,-151.0,0.00013698,2]
[339964927,1728232243790,-718.97,0.00013698,2]
[339964928,1728232243799,-500.0,0.00013698,2]
[339964929,1728232243808,-500.0,0.00013698,2]
[339964930,1728232243817,-500.0,0.00013698,2]
[339964931,1728232243827,-812.30543024,0.00013698,2]
[339964945,1728232245789,-417.31201474,0.00013689,2]
[339964946,1728232245850,-800.68798526,0.00013689,2]
[339964947,1728232245859,-356.38122276,0.00013698,2]
[339964948,1728232245869,-216.01104469,0.00013698,2]
[339964973,1728233209140,-300.0,0.00010674,2]
[339964974,1728233209162,-300.0,0.00010674,2]
[339964975,1728233209187,-7770.218205,0.00010675,2]
[339965009,1728233434245,-300.0,0.00010674,2]
[339965011,1728233434255,-300.0,0.00010674,2]
[339965013,1728233434265,-207.98813339,0.00010675,2]
[339965015,1728233434278,-6275.50721319,0.00010675,2]
[339965018,1728233434291,-725.88220562,0.00010675,2]
[339965085,1728233437965,-9920.4042428,0.00010675,2]
[339965086,1728233437974,-608.0,0.00010959,2]
[339965087,1728233437983,-250.0,0.0001102,2]
[339965088,1728233437993,-157.894736,0.00011417,2]
[339965089,1728233438002,-157.894736,0.0001145,2]
[339965090,1728233438011,-157.894736,0.00011483,2]
[339965091,1728233438021,-157.894736,0.00011516,2]
[339965092,1728233438030,-157.894736,0.00011549,2]
[339965093,1728233438039,-157.894736,0.00011582,2]
[339965094,1728233438049,-157.894736,0.00011615,2]
[339965095,1728233438058,-157.894736,0.00011648,2]
[339965096,1728233438067,-157.894736,0.00011681,2]
[339965097,1728233438077,-225.30483761,0.0001169,2]
[339965098,1728233438086,-6501.00648906,0.0001169,2]
[339965099,1728233438120,-8535.26974434,0.0001169,2]
[339965100,1728233438131,-157.894736,0.00011714,2]
[339965101,1728233438140,-420.0,0.00011734,2]
[339965102,1728233438150,-420.0,0.00011742,2]
[339965103,1728233438159,-157.894736,0.00011747,2]
[339965104,1728233438168,-157.894736,0.0001178,2]
[339965105,1728233438177,-157.894736,0.00011813,2]
[339965106,1728233438186,-157.894736,0.00011846,2]
[339965107,1728233438196,-157.894736,0.00011879,2]
[339965108,1728233438205,-157.894736,0.00011912,2]
[339965109,1728233438214,-157.894736,0.00011945,2]
[339965110,1728233438223,-157.894736,0.00011979,2]
[339965111,1728233438232,-157.894736,0.00012012,2]
[339965112,1728233438243,-153.0,0.00012329,2]
[339965113,1728233438252,-153.0,0.00012329,2]
[339965114,1728233438262,-307.1420733,0.00012378,2]
[339965115,1728233438272,-153.0,0.00012378,2]
[339965116,1728233438281,-153.0,0.00012685,2]
[339965117,1728233438290,-500.0,0.00012698,2]
[339965118,1728233438299,-587.0,0.00012898,2]
[339965119,1728233438308,-1688.54855881,0.000129,2]
[339965120,1728233438318,-587.0,0.00012916,2]
[339965121,1728233438326,-465.01006767,0.00013062,2]
[339965122,1728233438336,-269.200574,0.00013096,2]
[339965123,1728233438345,-153.0,0.00013151,2]
[339965124,1728233438355,-153.0,0.00013151,2]
[339965125,1728233438365,-255.7737139,0.00013151,2]
[339965126,1728233438376,-153.0,0.00013178,2]
[339965127,1728233438386,-410.722703,0.00013297,2]
[339965128,1728233438395,-164.68247,0.00013297,2]
[339965129,1728233438404,-21.93599538,0.00013439,2]
[339965130,1728233438418,-1256.38284064,0.00013439,2]
[339965136,1728233439944,-410.22972279,0.00013439,2]
[339965137,1728233439953,-410.722703,0.00013463,2]
[339965138,1728233439963,-153.0,0.00013507,2]
[339965139,1728233439972,-153.0,0.00013507,2]
[339965140,1728233439981,-153.0,0.00013507,2]
[339965141,1728233439993,-589.32829845,0.00013598,2]
[339965142,1728233440002,-2500.0,0.000136,2]
[339965143,1728233440012,-410.722703,0.0001363,2]
[339965144,1728233440022,-34569.74460591,0.0001365,2]
[339965145,1728233440032,-1000.0,0.00013654,2]
[339965146,1728233440041,-12165.3300279,0.00013658,2]
[339965147,1728233440050,-49802.6517959,0.00013658,2]
[339965148,1728233440060,-500.0,0.00013673,2]
[339965149,1728233440069,-500.0,0.00013673,2]
[339965150,1728233440079,-549.1192416,0.00013673,2]
[339965151,1728233440088,-500.0,0.00013673,2]
[339965152,1728233440098,-500.0,0.00013673,2]
[339965153,1728233440111,-500.0,0.00013673,2]
[339965154,1728233440120,-500.0,0.00013673,2]
[339965155,1728233440129,-500.0,0.00013673,2]
[339965156,1728233440139,-12165.3300279,0.00013678,2]
[339965157,1728233440148,-49802.6517959,0.00013678,2]
[339965158,1728233440345,-151.0,0.00013678,2]
[339965159,1728233440355,-862.482873,0.00013678,2]
[339965160,1728233440366,-862.482873,0.00013678,2]
[339965161,1728233440375,-151.0,0.00013678,2]
[339965162,1728233440386,-462.115935,0.00013678,2]
[339965163,1728233440396,-462.115935,0.00013678,2]
[339965164,1728233440406,-526.249398,0.00013678,2]
[339965165,1728233440415,-526.249398,0.00013678,2]
[339965166,1728233440426,-571.493419,0.00013678,2]
[339965167,1728233440437,-571.493419,0.00013678,2]
[339965168,1728233440447,-963.634807,0.00013678,2]
[339965169,1728233440458,-963.634807,0.00013678,2]
[339965170,1728233440470,-516.696508,0.00013678,2]
[339965171,1728233440479,-516.696508,0.00013678,2]
[339965172,1728233440488,-11830.57398502,0.00013688,2]
[339965173,1728233440499,-8879.66283001,0.00013688,2]
[339965174,1728233440508,-151.0,0.00013688,2]
[339965175,1728233440518,-151.0,0.00013688,2]
[339965176,1728233440527,-1140.06704,0.00013688,2]
[339965177,1728233440537,-985.805524,0.00013688,2]
[339965178,1728233440547,-985.805524,0.00013688,2]
[339965179,1728233440558,-151.0,0.00013688,2]
[339965180,1728233440567,-151.0,0.00013688,2]
[339965181,1728233440579,-862.482873,0.00013688,2]
[339965182,1728233440590,-862.482873,0.00013688,2]
[339965183,1728233440599,-151.0,0.00013688,2]
[339965184,1728233440610,-153.800932,0.00013688,2]
[339965185,1728233440621,-246.561932,0.00013688,2]
[339965186,1728233440631,-153.800932,0.00013688,2]
[339965187,1728233440642,-246.561932,0.00013688,2]
[339965188,1728233440654,-151.0,0.00013688,2]
[339965189,1728233440663,-451.143008,0.00013688,2]
[339965190,1728233440675,-451.143008,0.00013688,2]
[339965191,1728233440686,-151.0,0.00013688,2]
[339965192,1728233440697,-264.848752,0.00013688,2]
[339965193,1728233440708,-264.848752,0.00013688,2]
[339965194,1728233440718,-1254.338652,0.00013688,2]
[339965195,1728233440729,-151.0,0.00013688,2]
[339965196,1728233440740,-151.0,0.00013688,2]
[339965197,1728233440749,-1254.338652,0.00013688,2]
[339965198,1728233440759,-151.0,0.00013688,2]
[339965199,1728233440770,-151.0,0.00013688,2]
[339965200,1728233440781,-151.0,0.00013688,2]
[339965201,1728233440792,-462.115935,0.00013688,2]
[339965202,1728233440804,-462.115935,0.00013688,2]
[339965203,1728233440813,-526.249398,0.00013688,2]
[339965204,1728233440825,-526.249398,0.00013688,2]
[339965205,1728233440834,-151.0,0.00013688,2]
[339965206,1728233440844,-151.0,0.00013688,2]
[339965207,1728233440854,-648.525913,0.00013688,2]
[339965208,1728233440864,-648.525913,0.00013688,2]
[339965209,1728233440874,-571.493419,0.00013688,2]
[339965210,1728233440884,-571.493419,0.00013688,2]
[339965211,1728233440894,-214.902598,0.00013688,2]
[339965212,1728233440904,-214.902598,0.00013688,2]
[339965213,1728233440913,-1993.608469,0.00013688,2]
[339965214,1728233440922,-1993.608469,0.00013688,2]
[339965215,1728233440931,-151.295206,0.00013688,2]
[339965216,1728233440941,-963.634807,0.00013688,2]
[339965217,1728233440951,-963.634807,0.00013688,2]
[339965218,1728233440960,-1923.601699,0.00013688,2]
[339965219,1728233440970,-1923.601699,0.00013688,2]
[339965220,1728233440979,-516.696508,0.00013688,2]
[339965221,1728233440989,-516.696508,0.00013688,2]
[339965222,1728233441000,-255.636216,0.00013688,2]
[339965223,1728233441009,-255.636216,0.00013688,2]
[339965224,1728233441018,-151.0,0.00013688,2]
[339965225,1728233441027,-151.0,0.00013688,2]
[339965226,1728233441037,-321.751585,0.00013688,2]
[339965227,1728233441047,-321.751585,0.00013688,2]
[339965228,1728233441059,-321.751585,0.00013688,2]
[339965229,1728233441071,-321.751585,0.00013688,2]
[339965230,1728233441082,-151.0,0.00013688,2]
[339965231,1728233441094,-151.0,0.00013688,2]
[339965232,1728233441111,-151.0,0.00013688,2]
[339965233,1728233441123,-151.0,0.00013688,2]
[339965234,1728233441133,-122540.10225158,0.00013688,2]
[339965271,1728233442878,-151.0,0.00013688,2]
[339965272,1728233442888,-151.0,0.00013688,2]
[339965273,1728233442897,-593.52358464,0.00013688,2]
[339965274,1728233442988,-2430.73166078,0.00013688,2]
[339965276,1728233443028,-930.024245,0.00013688,2]
[339965280,1728233445976,-351.59094771,0.00013688,2]
[339965281,1728233445989,-514.07,0.00013688,2]
[339965304,1728234632112,-151.1,0.00010959,2]
[339965306,1728234632121,-755.5,0.00010959,2]
[339965307,1728234632130,-227.07944057,0.00012231,2]
[339965308,1728234632140,-3000.0,0.00012276,2]
[339965309,1728234632149,-300.0,0.00012331,2]
[339965310,1728234632160,-300.0,0.00012331,2]
[339965311,1728234632169,-8216.43418092,0.00012332,2]
[339965330,1728234638193,-674.80666933,0.00012332,2]
[339965332,1728234638303,-9493.90066605,0.00012332,2]
[339965333,1728234638315,-271.873288,0.00013096,2]
[339965334,1728234638327,-205.713762,0.00013297,2]
[339965335,1728234638338,-205.361352,0.00013297,2]
[339965336,1728234638352,-205.713762,0.00013463,2]
[339965337,1728234638364,-150.112233,0.000135,2]
[339965338,1728234638376,-1000.0,0.00013504,2]
[339965339,1728234638388,-1000.0,0.00013531,2]
[339965340,1728234638399,-420.0,0.00013532,2]
[339965341,1728234638410,-300.0,0.00013564,2]
[339965342,1728234638420,-1000.0,0.00013566,2]
[339965343,1728234638430,-1000.0,0.0001357,2]
[339965344,1728234638439,-1000.0,0.00013588,2]
[339965345,1728234638449,-530.39546865,0.0001359,2]
[339965346,1728234638459,-150.20322508,0.0001359,2]
[339965347,1728234638472,-150.112233,0.000136,2]
[339965348,1728234638482,-150.112233,0.000136,2]
[339965349,1728234638491,-153.278941,0.000136,2]
[339965350,1728234638502,-3000.0,0.000136,30]
[339965351,1728234638511,-300.0,0.000136,4]
[339965352,1728234638521,-162.803257,0.000136,2]
[339965353,1728234638531,-3000.0,0.0001361,30]
[339965354,1728234638541,-21963.13293,0.00013619,2]
[339965355,1728234638551,-5984.743443,0.0001362,30]
[339965356,1728234638560,-205.713762,0.0001363,2]
[339965357,1728234638570,-27742.1447539,0.00013658,2]
[339965358,1728234638581,-49802.651796,0.00013658,2]
[339965359,1728234638592,-27742.1447539,0.00013658,2]
[339965360,1728234638602,-49802.651796,0.00013658,2]
[339965361,1728234638613,-11830.57398502,0.00013658,2]
[339965362,1728234638625,-8879.66283001,0.00013658,2]
[339965363,1728234638635,-68652.89356213,0.00013658,2]
[339965364,1728234638649,-14573.54069957,0.00013658,2]
[339965365,1728234638660,-8503.12704152,0.00013658,2]
[339965366,1728234638675,-480.02913384,0.00013658,2]
[339965367,1728234638688,-128176.64209843,0.00013658,2]
[339965368,1728234638701,-12248.15711421,0.00013658,2]
[339965369,1728234638710,-151.0,0.00013659,2]
[339965370,1728234638722,-151.0,0.00013659,2]
[339965371,1728234638733,-151.0,0.00013659,2]
[339965372,1728234638745,-151.0,0.00013659,2]
[339965373,1728234638756,-151.0,0.00013659,2]
[339965374,1728234638770,-151.0,0.00013659,2]
[339965375,1728234638783,-151.0,0.00013659,2]
[339965376,1728234638794,-492.315935,0.00013659,2]
[339965377,1728234638806,-492.315935,0.00013659,2]
[339965378,1728234638816,-1790.21101579,0.00013668,2]
[339965379,1728234638830,-2382.67585133,0.00013668,2]
[339965389,1728234640187,-23569.25788678,0.00013668,2]
[339965390,1728234640202,-49802.651796,0.00013668,2]
[339965391,1728234640217,-151.0,0.00013668,2]
[339965392,1728234640231,-151.0,0.00013668,2]
[339965393,1728234640246,-151.0,0.00013668,2]
[339965394,1728234640260,-151.0,0.00013668,2]
[339965395,1728234640271,-151.0,0.00013668,2]
[339965396,1728234640286,-151.0,0.00013668,2]
[339965397,1728234640300,-492.315935,0.00013668,2]
[339965398,1728234640315,-492.315935,0.00013668,2]
[339965399,1728234640329,-55484.2895078,0.00013668,2]
[339965400,1728234640342,-49802.651796,0.00013668,2]
[339965401,1728234640355,-500.0,0.00013673,2]
[339965402,1728234640369,-151.0,0.00013673,2]
[339965403,1728234640383,-151.0,0.00013673,2]
[339965404,1728234640395,-492.315935,0.00013673,2]
[339965405,1728234640407,-27742.1447539,0.00013678,2]
[339965406,1728234640420,-202.640469,0.00013678,2]
[339965407,1728234640436,-151.0,0.00013678,2]
[339965408,1728234640453,-151.0,0.00013678,2]
[339965409,1728234640466,-230.002598,0.00013678,2]
[339965410,1728234640482,-230.002598,0.00013678,2]
[339965411,1728234640495,-230.002598,0.00013678,2]
[339965412,1728234640509,-230.002598,0.00013678,2]
[339965413,1728234640525,-151.0,0.00013678,2]
[339965414,1728234640540,-2077.727667,0.00013678,2]
[339965415,1728234640552,-2077.727667,0.00013678,2]
[339965416,1728234640565,-151.0,0.00013678,2]
[339965417,1728234640577,-151.0,0.00013678,2]
[339965418,1728234640591,-151.0,0.00013678,2]
[339965419,1728234640607,-151.0,0.00013678,2]
[339965420,1728234640620,-151.295206,0.00013678,2]
[339965421,1728234640632,-151.0,0.00013678,2]
[339965422,1728234640644,-151.0,0.00013678,2]
[339965423,1728234640656,-151.0,0.00013678,2]
[339965424,1728234640672,-151.0,0.00013678,2]
[339965425,1728234640686,-151.0,0.00013678,2]
[339965426,1728234640700,-151.0,0.00013678,2]
[339965427,1728234640713,-153.34922,0.00013678,2]
[339965428,1728234640727,-151.0,0.00013678,2]
[339965429,1728234640739,-151.0,0.00013678,2]
[339965430,1728234640753,-2733.921905,0.00013678,2]
[339965431,1728234640765,-2733.921905,0.00013678,2]
[339965432,1728234640777,-2733.921905,0.00013678,2]
[339965433,1728234640791,-2733.921905,0.00013678,2]
[339965434,1728234640803,-151.0,0.00013678,2]
[339965435,1728234640817,-151.0,0.00013678,2]
[339965436,1728234640828,-151.0,0.00013678,2]
[339965437,1728234640840,-151.0,0.00013678,2]
[339965438,1728234640854,-151.0,0.00013678,2]
[339965439,1728234640867,-151.0,0.00013678,2]
[339965440,1728234640879,-357.851806,0.00013678,2]
[339965441,1728234640891,-357.851806,0.00013678,2]
[339965442,1728234640905,-357.851806,0.00013678,2]
[339965443,1728234640921,-357.851806,0.00013678,2]
[339965444,1728234640933,-151.0,0.00013678,2]
[339965445,1728234640945,-151.0,0.00013678,2]
[339965446,1728234640956,-151.0,0.00013678,2]
[339965447,1728234640968,-151.0,0.00013678,2]
[339965448,1728234640979,-701.854378,0.00013678,2]
[339965449,1728234640991,-701.854378,0.00013678,2]
[339965450,1728234641004,-151.0,0.00013678,2]
[339965451,1728234641016,-151.0,0.00013678,2]
[339965452,1728234641027,-1191.056277,0.00013678,2]
[339965453,1728234641038,-1191.056277,0.00013678,2]
[339965454,1728234641050,-701.854378,0.00013678,2]
[339965455,1728234641062,-1191.056277,0.00013678,2]
[339965456,1728234641073,-701.854378,0.00013678,2]
[339965457,1728234641084,-151.0,0.00013678,2]
[339965458,1728234641095,-151.0,0.00013678,2]
[339965459,1728234641107,-1191.056277,0.00013678,2]
[339965460,1728234641118,-1191.056277,0.00013678,2]
[339965461,1728234641129,-1191.056277,0.00013678,2]
[339965462,1728234641141,-922.755962,0.00013678,2]
[339965463,1728234641152,-922.755962,0.00013678,2]
[339965464,1728234641167,-922.755962,0.00013678,2]
[339965465,1728234641181,-922.755962,0.00013678,2]
[339965466,1728234641193,-451.143008,0.00013678,2]
[339965467,1728234641207,-451.143008,0.00013678,2]
[339965468,1728234641220,-451.143008,0.00013678,2]
[339965469,1728234641234,-451.143008,0.00013678,2]
[339965470,1728234641246,-151.0,0.00013678,2]
[339965471,1728234641259,-151.0,0.00013678,2]
[339965472,1728234641271,-151.0,0.00013678,2]
[339965473,1728234641286,-151.0,0.00013678,2]
[339965474,1728234641297,-423.698881,0.00013678,2]
[339965475,1728234641308,-423.698881,0.00013678,2]
[339965476,1728234641319,-1292.088652,0.00013678,2]
[339965477,1728234641331,-1292.088652,0.00013678,2]
[339965478,1728234641342,-423.698881,0.00013678,2]
[339965479,1728234641353,-423.698881,0.00013678,2]
[339965480,1728234641364,-1292.088652,0.00013678,2]
[339965481,1728234641375,-1292.088652,0.00013678,2]
[339965482,1728234641386,-1000.905524,0.00013678,2]
[339965483,1728234641398,-1000.905524,0.00013678,2]
[339965484,1728234641409,-1000.905524,0.00013678,2]
[339965485,1728234641425,-1000.905524,0.00013678,2]
[339965486,1728234641438,-151.0,0.00013678,2]
[339965487,1728234641451,-151.0,0.00013678,2]
[339965488,1728234641467,-151.0,0.00013678,2]
[339965489,1728234641479,-151.0,0.00013678,2]
[339965490,1728234641492,-1215.295975,0.00013678,2]
[339965491,1728234641506,-1215.295975,0.00013678,2]
[339965492,1728234641519,-1215.295975,0.00013678,2]
[339965493,1728234641531,-1215.295975,0.00013678,2]
[339965494,1728234641547,-310.431954,0.00013678,2]
[339965495,1728234641559,-310.431954,0.00013678,2]
[339965496,1728234641572,-310.431954,0.00013678,2]
[339965497,1728234641583,-310.431954,0.00013678,2]
[339965498,1728234641596,-151.0,0.00013678,2]
[339965499,1728234641609,-151.0,0.00013678,2]
[339965500,1728234641621,-151.0,0.00013678,2]
[339965501,1728234641634,-151.0,0.00013678,2]
[339965502,1728234641649,-151.0,0.00013678,2]
[339965503,1728234641662,-151.0,0.00013678,2]
[339965504,1728234641674,-151.0,0.00013678,2]
[339965505,1728234641686,-151.0,0.00013678,2]
[339965506,1728234641699,-151.0,0.00013678,2]
[339965507,1728234641711,-151.0,0.00013678,2]
[339965508,1728234641722,-151.0,0.00013678,2]
[339965509,1728234641731,-153.800932,0.00013678,2]
[339965510,1728234641741,-153.800932,0.00013678,2]
[339965511,1728234641750,-291.861932,0.00013678,2]
[339965512,1728234641759,-291.861932,0.00013678,2]
[339965513,1728234641769,-153.800932,0.00013678,2]
[339965514,1728234641778,-153.800932,0.00013678,2]
[339965515,1728234641788,-291.861932,0.00013678,2]
[339965516,1728234641797,-291.861932,0.00013678,2]
[339965517,1728234641807,-151.0,0.00013678,2]
[339965518,1728234641816,-151.0,0.00013678,2]
[339965519,1728234642076,-151.0,0.00013678,2]
[339965520,1728234642100,-533.799398,0.00013678,2]
[339965521,1728234642112,-533.799398,0.00013678,2]
[339965522,1728234642123,-533.799398,0.00013678,2]
[339965523,1728234642134,-1671.877759,0.00013678,2]
[339965524,1728234642144,-1671.877759,0.00013678,2]
[339965525,1728234642153,-533.799398,0.00013678,2]